fUSD/lending_fUSD_20250724
["ID","MTS","AMOUNT","RATE_DAILY","PERIOD"]
[374566581,1753359032559,-632.89,0.00021174,2]
[374566582,1753359032570,-304.99621701,0.00021276,2]
[374566583,1753359032579,-290.35,0.00021363,2]
[374566584,1753359032589,-85867.94757706,0.00021367,2]
[374566585,1753359032601,-1072.12670496,0.00021367,2]
[374566586,1753359032613,-4255.31210838,0.00021367,2]
[374566587,1753359032625,-22759.76038286,0.00021367,2]
[374566588,1753359032635,-500.0,0.00021373,2]
[374566589,1753359032644,-500.0,0.00021373,2]
[374566590,1753359032653,-500.0,0.00021373,2]
[374566591,1753359032663,-5635.70110349,0.00021375,2]
[374566594,1753359032679,-608.5,0.00021375,2]
[374566624,1753359038315,-500.0,0.00021374,2]
[374566625,1753359038326,-435.07378935,0.00021374,2]
[374566626,1753359038336,-584.09714785,0.00021374,2]
[374566627,1753359038422,-30.56847031,0.00021374,2]
[374566628,1753359038433,-500.0,0.00021374,2]
[374566629,1753359038443,-500.0,0.00021374,2]
[374566630,1753359038453,-500.0,0.00021374,2]
[374566631,1753359038463,-350.12544651,0.00021374,2]
[374566632,1753359038472,-405.72952453,0.00021374,2]
[374566633,1753359038482,-217.17734268,0.00021374,2]
[374566634,1753359038493,-500.0,0.00021374,2]
[374566635,1753359038504,-500.0,0.00021374,2]
[374566636,1753359038513,-500.0,0.00021374,2]
[374566637,1753359038525,-500.0,0.00021374,2]
[374566638,1753359038544,-500.0,0.00021374,2]
[374566639,1753359038554,-500.0,0.00021374,2]
[374566640,1753359038565,-500.0,0.00021374,2]
[374566641,1753359038575,-500.0,0.00021374,2]
[374566642,1753359038584,-500.0,0.00021374,2]
[374566643,1753359038595,-500.0,0.00021374,2]
[374566644,1753359038607,-500.0,0.00021374,2]
[374566645,1753359038617,-500.0,0.00021374,2]
[374566646,1753359038627,-500.0,0.00021374,2]
[374566647,1753359038636,-500.0,0.00021374,2]
[374566649,1753359038646,-500.0,0.00021374,2]
[374566651,1753359038655,-383.3674935,0.00021374,2]
[374566653,1753359038665,-500.0,0.00021374,2]
[374566655,1753359038674,-500.0,0.00021374,2]
[374566657,1753359038684,-500.0,0.00021374,2]
[374566659,1753359038693,-500.0,0.00021374,2]
[374566661,1753359038703,-429.00773332,0.00021374,2]
[374566663,1753359038712,-631.04569688,0.00021374,2]
[374566665,1753359038721,-500.0,0.00021374,2]
[374566667,1753359038730,-500.0,0.00021374,2]
[374566669,1753359038739,-500.0,0.00021374,2]
[374566671,1753359038748,-23.03145065,0.00021374,2]
[374566675,1753359038777,-476.96854935,0.00021374,2]
[374566677,1753359038786,-500.0,0.00021374,2]
[374566679,1753359038796,-500.0,0.00021374,2]
[374566681,1753359038805,-500.0,0.00021374,2]
[374566683,1753359038815,-500.0,0.00021374,2]
[374566685,1753359038825,-500.0,0.00021374,2]
[374566687,1753359038834,-1492.40684672,0.00021375,2]
[374566857,1753359040380,-500.0,0.00021374,2]
[374566860,1753359040390,-391.70198367,0.00021374,2]
[374566869,1753359040435,-108.29801633,0.00021374,2]
[374566872,1753359040444,-500.0,0.00021374,2]
[374566875,1753359040454,-500.0,0.00021374,2]
[374566878,1753359040463,-500.0,0.00021374,2]
[374566881,1753359040473,-174.20198357,0.00021374,2]
[374566885,1753359040485,-325.79801643,0.00021374,2]
[374566888,1753359040495,-500.0,0.00021374,2]
[374566891,1753359040504,-500.0,0.00021374,2]
[374566894,1753359040514,-500.0,0.00021374,2]
[374566897,1753359040524,-500.0,0.00021374,2]
[374566900,1753359040533,-500.0,0.00021374,2]
[374566903,1753359040543,-500.0,0.00021374,2]
[374566906,1753359040553,-350.68266776,0.00021374,2]
[374567190,1753359043364,-149.31733224,0.00021374,2]
[374567192,1753359043374,-500.0,0.00021374,2]
[374567194,1753359043384,-500.0,0.00021374,2]
[374567195,1753359043393,-500.0,0.00021374,2]
[374567197,1753359043402,-500.0,0.00021374,2]
[374567199,1753359043412,-500.0,0.00021374,2]
[374567201,1753359043431,-500.0,0.00021374,2]
[374567203,1753359043440,-500.0,0.00021374,2]
[374567205,1753359043449,-500.0,0.00021374,2]
[374567207,1753359043458,-500.0,0.00021374,2]
[374567209,1753359043468,-500.0,0.00021374,2]
[374567211,1753359043477,-500.0,0.00021374,2]
[374567212,1753359043486,-376.1808375,0.00021374,2]
[374567214,1753359043498,-123.8191625,0.00021374,2]
[374567216,1753359043508,-500.0,0.00021374,2]
[374567218,1753359043517,-500.0,0.00021374,2]
[374567220,1753359043527,-500.0,0.00021374,2]
[374567222,1753359043536,-500.0,0.00021374,2]
[374567224,1753359043545,-500.0,0.00021374,2]
[374567225,1753359043554,-10549.21287529,0.00021375,2]
[374567228,1753359043566,-1200.0,0.00021375,2]
[374567230,1753359043577,-192528.62755474,0.00021375,2]
[374567240,1753359043681,-1322.38041285,0.00021375,2]
[374567577,1753359047151,-1182.58139847,0.00021375,2]
[374567580,1753359047165,-162822.94535293,0.00021375,2]
[374567582,1753359047176,-263050.44185794,0.00021375,2]
[374567618,1753359047514,-556877.50885613,0.00021375,2]
[374567623,1753359047553,-99295.68409769,0.00021375,2]
[374567625,1753359047563,-66957.84,0.00021377,2]
[374567627,1753359047574,-165.58,0.00021398,2]
[374567629,1753359047583,-250.0,0.00021446,2]
[374567631,1753359047592,-1000.0,0.00021478,2]
[374567633,1753359047602,-666.0,0.00021487,3]
[374567635,1753359047611,-2141.58490787,0.000219,6]
[374567637,1753359047621,-1409.5,0.00021918,2]
[374567639,1753359047630,-500.0,0.00021921,2]
[374567641,1753359047639,-5100.27,0.00021951,2]
[374567643,1753359047649,-2776.29261939,0.00022,2]
[374567645,1753359047659,-459.0,0.00022,2]
[374567646,1753359047668,-1293.95,0.00022,2]
[374567647,1753359047678,-2141.5849076,0.00022003,6]
[374567648,1753359047687,-1000.0,0.00022011,2]
[374567649,1753359047697,-5637.37594548,0.00022087,2]
[374567650,1753359047707,-231.28369723,0.00022087,2]
[374567651,1753359047717,-167.02,0.00022103,2]
[374567652,1753359047726,-2141.5849076,0.00022107,6]
[374567653,1753359047735,-504.0,0.00022148,4]
[374567654,1753359047745,-420.0,0.00022165,2]
[374567655,1753359047754,-13140.9,0.00022169,2]
[374567656,1753359047764,-150.0,0.00022199,2]
[374567657,1753359047777,-11111.17,0.00022201,2]
[374567659,1753359047787,-2141.5849076,0.0002221,6]
[374567661,1753359047796,-321.26,0.00022218,2]
[374567663,1753359047806,-1206.0,0.0002227,2]
[374567665,1753359047818,-685.44,0.00022304,2]
[374567667,1753359047827,-2141.5849076,0.00022314,7]
[374567669,1753359047836,-5511.0,0.000224,5]
[374567671,1753359047848,-2141.5849076,0.00022417,7]
[374567673,1753359047859,-150.0,0.00022463,2]
[374567675,1753359047868,-150.0,0.00022463,2]
[374567677,1753359047881,-150.0,0.00022463,2]
[374567679,1753359047890,-150.0,0.00022463,2]
[374567681,1753359047901,-150.0,0.00022463,2]
[374567683,1753359047910,-150.0,0.00022463,2]
[374567685,1753359047920,-150.0,0.00022463,2]
[374567687,1753359047930,-150.0,0.00022463,2]
[374567689,1753359047940,-150.0,0.00022463,2]
[374567691,1753359047949,-150.0,0.00022463,2]
[374567693,1753359047959,-156.70194259,0.00022507,2]
[374567696,1753359047970,-1164.39715094,0.00022507,2]
[374567698,1753359047980,-679.79746156,0.00022507,2]
[374567700,1753359047989,-2141.5849076,0.00022521,7]
[374567702,1753359047999,-150.0,0.00022529,4]
[374567704,1753359048009,-150.0,0.00022529,4]
[374567705,1753359048018,-276.43468118,0.00022592,2]
[374567708,1753359048028,-226.419325,0.00022592,2]
[374567710,1753359048037,-346.92554585,0.00022594,2]
[374567712,1753359048047,-160.0,0.00022594,2]
[374567713,1753359048056,-600.0,0.00022594,2]
[374567715,1753359048066,-243.64761885,0.00022594,2]
[374567717,1753359048075,-150.0,0.00022594,4]
[374567719,1753359048086,-150.0,0.00022594,4]
[374567721,1753359048096,-1108.2133,0.000226,2]
[374567723,1753359048106,-476.94,0.00022603,2]
[374567725,1753359048116,-170.02,0.00022603,2]
[374567728,1753359048126,-181857.3408942,0.00022607,2]
[374567729,1753359048137,-19370.44,0.00022607,2]
[374567731,1753359048147,-2141.5849076,0.00022624,7]
[374567733,1753359048157,-150.0,0.0002266,4]
[374567735,1753359048167,-150.0,0.0002266,4]
[374567737,1753359048177,-150.0,0.00022671,4]
[374567739,1753359048187,-500.0,0.00022673,2]
[374567741,1753359048197,-225.24047206,0.00022673,2]
[374567747,1753359048240,-274.75952794,0.00022673,2]
[374567749,1753359048250,-500.71525864,0.00022673,2]
[374567751,1753359048260,-500.0,0.00022673,2]
[374567752,1753359048270,-500.0,0.00022673,2]
[374567754,1753359048279,-500.0,0.00022673,2]
[374567756,1753359048288,-502.31238747,0.00022673,2]
[374567758,1753359048299,-159.82846543,0.00022673,2]
[374567761,1753359048309,-500.0,0.00022673,2]
[374567763,1753359048319,-501.53066362,0.00022673,2]
[374567765,1753359048330,-502.07556178,0.00022673,2]
[374567767,1753359048340,-522.66391697,0.00022673,2]
[374567768,1753359048350,-501.7695935,0.00022673,2]
[374567770,1753359048360,-267.43367329,0.00022673,2]
[374567772,1753359048370,-2000.0,0.000227,2]
[374567774,1753359048380,-20756.75184422,0.000227,2]
[374567777,1753359048390,-1000.0,0.000227,2]
[374567779,1753359048401,-150.0,0.00022726,4]
[374567781,1753359048411,-150.0,0.00022726,4]
[374567782,1753359048421,-2141.5849076,0.00022728,7]
[374567784,1753359048431,-1164.39715087,0.00022773,2]
[374567786,1753359048440,-150.0,0.00022775,4]
[374567788,1753359048450,-150.0,0.00022791,4]
[374567790,1753359048465,-150.0,0.00022791,4]
[374567792,1753359048476,-1000.0,0.000228,2]
[374567794,1753359048486,-157.97267684,0.00022826,2]
[374567796,1753359048496,-2141.5849076,0.00022831,8]
[374567798,1753359048505,-268.723,0.00022844,2]
[374567800,1753359048515,-4651.224,0.00022844,2]
[374567802,1753359048525,-150.0,0.00022851,2]
[374567804,1753359048535,-150.0,0.00022857,4]
[374567806,1753359048544,-150.0,0.00022857,4]
[374567808,1753359048554,-150.0,0.00022867,2]
[374567810,1753359048564,-150.0,0.00022879,4]
[374567812,1753359048573,-194.26992648,0.0002289,2]
[374567814,1753359048583,-1026.0,0.000229,3]
[374567816,1753359048593,-1008.0,0.000229,3]
[374567819,1753359048603,-20390.16446884,0.000229,2]
[374567821,1753359048616,-150.0,0.00022923,4]
[374567822,1753359048626,-150.0,0.00022923,4]
[374567824,1753359048636,-1229.74986624,0.00022926,2]
[374567826,1753359048646,-146657.98502341,0.00022928,2]
[374567829,1753359048658,-6580.08443928,0.00022928,2]
[374567831,1753359048669,-8464.2148864,0.00022928,2]
[374570763,1753359109735,716.0,0.00027397,120]
[374570764,1753359166618,400.0,0.00024302,120]
[374570765,1753359202933,154.49,0.00013699,2]
[374570778,1753359643137,2505.51255003,0.00027397,120]
[374570784,1753359878331,527.0,0.00026434,120]
[374571052,1753360078868,12746.51464961,0.00016,2]
[374571059,1753360231608,-671.87,0.00019178,2]
[374571060,1753360231619,-455.04294232,0.00019262,2]
[374571061,1753360231631,-557.72894546,0.00019262,2]
[374571062,1753360231642,-57.22811222,0.00019262,2]
[374571063,1753360231652,-694.20760951,0.00019345,2]
[374571064,1753360231664,-375.79239049,0.00019345,2]
[374571065,1753360231673,-505.0,0.0001955,2]
[374571066,1753360231683,-219.79432395,0.00020516,2]
[374571067,1753360231692,-196.33990788,0.00020516,2]
[374571068,1753360231703,-671.87,0.00020736,2]
[374571069,1753360231713,-300.75,0.00020972,2]
[374571070,1753360231722,-300.32,0.00020972,2]
[374571071,1753360231732,-1000.0,0.00021086,2]
[374571072,1753360231742,-1200.0,0.00021094,2]
[374571073,1753360231751,-300.0,0.00021095,2]
[374571074,1753360231760,-802.56249864,0.00021096,2]
[374571075,1753360231772,-267.43750136,0.00021096,2]
[374571076,1753360231781,-796.23507836,0.00021096,2]
[374571077,1753360231794,-273.76492164,0.00021096,2]
[374571078,1753360231804,-300.0,0.00021096,2]
[374571079,1753360231814,-250.0,0.00021096,2]
[374571080,1753360231824,-1070.0,0.00021096,2]
[374571081,1753360231833,-152.65,0.00021097,2]
[374571082,1753360231843,-505.0,0.00021106,4]
[374571083,1753360231853,-165.45,0.00021123,2]
[374571084,1753360231862,-262.69,0.00021138,2]
[374571085,1753360231874,-481.61,0.00021143,2]
[374571086,1753360231885,-527.0,0.00021147,2]
[374571087,1753360231895,-152.29,0.00021156,2]
[374571089,1753360231905,-180.0,0.00021183,7]
[374571091,1753360231915,-1906.46,0.00021192,2]
[374571092,1753360231925,-666.0,0.00021208,3]
[374571093,1753360231934,-250.0,0.00021271,2]
[374571094,1753360231944,-305.86,0.00021297,2]
[374571095,1753360231954,-302.13,0.00021307,2]
[374571097,1753360231964,-300.78,0.00021307,2]
[374571099,1753360231974,-301.93,0.00021307,2]
[374571101,1753360231985,-302.78,0.00021331,2]
[374571102,1753360231995,-303.34,0.00021348,2]
[374571103,1753360232006,-300.52,0.00021348,2]
[374571106,1753360232015,-302.85,0.00021348,2]
[374571108,1753360232024,-5493.57,0.00021406,2]
[374571110,1753360232034,-2000.0,0.000219,2]
[374571112,1753360232043,-1580.24444307,0.000219,6]
[374571114,1753360232053,-5000.0,0.00021918,2]
[374571115,1753360232063,-150.42740295,0.00021918,2]
[374571116,1753360232072,-1000.0,0.00021946,2]
[374571117,1753360232082,-468.0,0.00022,2]
[374571118,1753360232091,-223.0,0.00022,2]
[374571119,1753360232100,-10821.20612906,0.00022,2]
[374571120,1753360232109,-1150.17,0.00022,2]
[374571121,1753360232123,-1580.24444285,0.00022038,6]
[374571122,1753360232133,-9216.856,0.00022087,2]
[374571123,1753360232142,-346.92554585,0.00022087,2]
[374571124,1753360232152,-160.0,0.00022087,2]
[374571125,1753360232162,-600.0,0.00022087,2]
[374571126,1753360232172,-231.28369723,0.00022087,2]
[374571127,1753360232182,-1580.24444285,0.00022176,6]
[374571128,1753360232192,-223.0,0.00022192,7]
[374571129,1753360232202,-262.69,0.00022195,2]
[374571130,1753360232211,-152.29,0.00022213,2]
[374571131,1753360232221,-671.87,0.00022294,2]
[374571133,1753360232231,-1580.24444285,0.00022314,7]
[374571134,1753360232240,-1000.0,0.000224,2]
[374571135,1753360232249,-1580.24444285,0.00022452,7]
[374571136,1753360232259,-150.0,0.00022488,2]
[374571137,1753360232269,-150.0,0.00022488,2]
[374571138,1753360232279,-150.0,0.00022488,2]
[374571139,1753360232288,-150.0,0.00022488,2]
[374571140,1753360232298,-150.0,0.00022488,2]
[374571141,1753360232307,-150.0,0.00022488,2]
[374571142,1753360232317,-150.0,0.00022488,2]
[374571143,1753360232327,-1000.0,0.000225,2]
[374571144,1753360232336,-1000.0,0.000225,2]
[374571145,1753360232347,-562.0,0.00022556,2]
[374571146,1753360232356,-150.0,0.00022571,4]
[374571147,1753360232365,-1580.24444285,0.0002259,7]
[374571148,1753360232378,-561.0,0.00022592,2]
[374571149,1753360232388,-5831.06345465,0.00022635,2]
[374571150,1753360232397,-600.0,0.00022635,2]
[374571151,1753360232407,-150.0,0.00022654,4]
[374571152,1753360232416,-505.0,0.00022661,6]
[374571153,1753360232426,-1206.0,0.000227,2]
[374571154,1753360232436,-261.0,0.00022717,2]
[374571155,1753360232446,-1580.24444285,0.00022728,7]
[374571156,1753360232455,-150.0,0.00022738,4]
[374571157,1753360232465,-150.0,0.00022765,4]
[374571158,1753360232475,-150.0,0.00022821,4]
[374571159,1753360232485,-4808.3218,0.00022828,2]
[374571160,1753360232495,-1000.0,0.00022828,2]
[374571161,1753360232505,-274.2923,0.00022828,2]
[374571162,1753360232514,-2361.6315,0.00022828,2]
[374571163,1753360232524,-559.99100018,0.00022828,2]
[374571164,1753360232534,-1580.24444285,0.00022866,8]
[374571165,1753360232544,-4497.007,0.00022876,2]
[374571166,1753360232554,-255.305,0.00022876,2]
[374571167,1753360232564,-150.0,0.00022904,4]
[374571168,1753360232573,-150.0,0.00022904,4]
[374571169,1753360232583,-210.4,0.00022918,2]
[374571170,1753360232593,-2081.6974858,0.00022926,2]
[374571171,1753360232603,-35147.0989951,0.00022926,2]
[374571172,1753360232612,-642.7631424,0.00022926,2]
[374571173,1753360232624,-14751.9170342,0.00022926,2]
[374571174,1753360232634,-5153.1244823,0.00022928,2]
[374571175,1753360232643,-153.0,0.00022928,2]
[374571176,1753360232653,-153.0,0.00022928,2]
[374571177,1753360232663,-153.0,0.00022928,2]
[374571178,1753360232673,-1211.0,0.00022928,2]
[374571179,1753360232683,-1211.0,0.00022928,2]
[374571180,1753360232693,-1211.0,0.00022928,2]
[374571181,1753360232702,-1211.0,0.00022928,2]
[374571182,1753360232712,-1211.0,0.00022928,2]
[374571183,1753360232721,-119420.8017458,0.00022928,2]
[374571184,1753360232732,-153.0,0.00022928,2]
[374571185,1753360232742,-153.0,0.00022928,2]
[374571186,1753360232751,-168.2079298,0.00022942,2]
[374571187,1753360232761,-500.0,0.00022944,2]
[374571188,1753360232771,-420.0,0.00022944,2]
[374571189,1753360232781,-500.0,0.00022972,2]
[374571190,1753360232790,-277.0,0.00022972,2]
[374571191,1753360232801,-503.73183064,0.00022973,2]
[374571192,1753360232811,-500.0,0.00022973,2]
[374571193,1753360232821,-500.0,0.00022973,2]
[374571194,1753360232830,-501.77587038,0.00022973,2]
[374571195,1753360232840,-500.0,0.00022973,2]
[374571196,1753360232850,-501.94535035,0.00022973,2]
[374571197,1753360232859,-500.39239312,0.00022973,2]
[374571198,1753360232871,-207.03962855,0.00022973,2]
[374571199,1753360232881,-500.0,0.00022973,2]
[374571200,1753360232891,-529.54324081,0.00022973,2]
[374571201,1753360232901,-343.60578277,0.00022973,2]
[374571202,1753360232911,-432.09194559,0.00022973,2]
[374571203,1753360232921,-502.11206408,0.00022973,2]
[374571204,1753360232931,-150.0,0.00022987,4]
[374571205,1753360232940,-618.61512011,0.00022999,2]
[374571206,1753360232950,-400.42638218,0.00023,5]
[374571207,1753360232959,-1000.0,0.00023,5]
[374571208,1753360232969,-1000.0,0.00023,4]
[374571209,1753360232979,-1000.0,0.00023,4]
[374571210,1753360232988,-1000.0,0.00023,4]
[374571211,1753360232998,-859.0,0.00023,4]
[374571212,1753360233007,-1000.0,0.00023,5]
[374571213,1753360233016,-1000.0,0.00023,5]
[374571214,1753360233026,-1000.0,0.00023,5]
[374571215,1753360233035,-1000.0,0.00023,4]
[374571216,1753360233043,-2042.39802,0.00023,2]
[374571217,1753360233053,-1580.24444285,0.00023003,8]
[374571218,1753360233062,-223.0,0.00023014,7]
[374571219,1753360233071,-150.0,0.00023029,2]
[374571220,1753360233081,-152.0,0.00023043,2]
[374571221,1753360233089,-152.0,0.00023043,2]
[374571222,1753360233098,-152.0,0.00023043,2]
[374571223,1753360233107,-152.0,0.00023043,2]
[374571224,1753360233118,-152.0,0.00023043,2]
[374571225,1753360233132,-152.0,0.00023043,2]
[374571226,1753360233142,-152.0,0.00023043,2]
[374571227,1753360233152,-152.0,0.00023043,2]
[374571228,1753360233163,-152.0,0.00023043,2]
[374571229,1753360233173,-152.0,0.00023043,2]
[374571230,1753360233183,-152.0,0.00023043,2]
[374571231,1753360233195,-152.0,0.00023043,2]
[374571232,1753360233205,-152.0,0.00023043,2]
[374571233,1753360233215,-152.0,0.00023043,2]
[374571234,1753360233226,-152.0,0.00023043,2]
[374571235,1753360233236,-152.0,0.00023043,2]
[374571236,1753360233246,-152.0,0.00023043,2]
[374571237,1753360233256,-152.0,0.00023043,2]
[374571238,1753360233267,-152.0,0.00023043,2]
[374571239,1753360233278,-152.0,0.00023043,2]
[374571240,1753360233287,-152.0,0.00023043,2]
[374571241,1753360233298,-152.0,0.00023043,2]
[374571242,1753360233308,-152.0,0.00023043,2]
[374571243,1753360233318,-152.0,0.00023043,2]
[374571244,1753360233328,-152.0,0.00023043,2]
[374571245,1753360233340,-152.0,0.00023043,2]
[374571246,1753360233350,-152.0,0.00023043,2]
[374571247,1753360233360,-152.0,0.00023043,2]
[374571248,1753360233369,-152.0,0.00023043,2]
[374571249,1753360233382,-152.0,0.00023043,2]
[374571250,1753360233392,-152.0,0.00023043,2]
[374571251,1753360233402,-152.0,0.00023043,2]
[374571252,1753360233412,-152.0,0.00023043,2]
[374571253,1753360233424,-152.0,0.00023043,2]
[374571254,1753360233434,-152.0,0.00023043,2]
[374571255,1753360233444,-152.0,0.00023043,2]
[374571256,1753360233454,-152.0,0.00023043,2]
[374571257,1753360233464,-152.0,0.00023043,2]
[374571258,1753360233849,-152.0,0.00023043,2]
[374571259,1753360233860,-152.0,0.00023043,2]
[374571260,1753360233869,-152.0,0.00023043,2]
[374571261,1753360233880,-152.0,0.00023043,2]
[374571262,1753360233890,-152.0,0.00023043,2]
[374571263,1753360233900,-152.0,0.00023043,2]
[374571264,1753360233910,-152.0,0.00023043,2]
[374571265,1753360233920,-152.0,0.00023043,2]
[374571266,1753360233930,-152.0,0.00023043,2]
[374571267,1753360233940,-152.0,0.00023043,2]
[374571268,1753360233950,-152.0,0.00023043,2]
[374571269,1753360233959,-152.0,0.00023043,2]
[374571270,1753360233969,-152.0,0.00023043,2]
[374571271,1753360233979,-152.0,0.00023043,2]
[374571272,1753360233989,-152.0,0.00023043,2]
[374571273,1753360233999,-152.0,0.00023043,2]
[374571274,1753360234008,-152.0,0.00023043,2]
[374571275,1753360234018,-152.0,0.00023043,2]
[374571276,1753360234028,-152.0,0.00023043,2]
[374571277,1753360234038,-152.0,0.00023043,2]
[374571278,1753360234047,-152.0,0.00023043,2]
[374571279,1753360234058,-152.0,0.00023043,2]
[374571280,1753360234068,-152.0,0.00023043,2]
[374571281,1753360234078,-152.0,0.00023043,2]
[374571282,1753360234088,-152.0,0.00023043,2]
[374571283,1753360234098,-152.0,0.00023043,2]
[374571284,1753360234107,-152.0,0.00023043,2]
[374571285,1753360234118,-152.0,0.00023043,2]
[374571286,1753360234132,-152.0,0.00023043,2]
[374571287,1753360234142,-152.0,0.00023043,2]
[374571288,1753360234152,-152.0,0.00023043,2]
[374571289,1753360234163,-152.0,0.00023043,2]
[374571290,1753360234172,-152.0,0.00023043,2]
[374571291,1753360234182,-152.0,0.00023043,2]
[374571292,1753360234192,-152.0,0.00023043,2]
[374571293,1753360234204,-152.0,0.00023043,2]
[374571294,1753360234214,-152.0,0.00023043,2]
[374571295,1753360234225,-152.0,0.00023043,2]
[374571296,1753360234235,-152.0,0.00023043,2]
[374571297,1753360234244,-152.0,0.00023043,2]
[374571298,1753360234254,-152.0,0.00023043,2]
[374571299,1753360234264,-152.0,0.00023043,2]
[374571300,1753360234274,-152.0,0.00023043,2]
[374571301,1753360234284,-152.0,0.00023043,2]
[374571302,1753360234294,-160.44102695,0.00023043,2]
[374571303,1753360234304,-1200.0,0.00023052,2]
[374571304,1753360234315,-200.0,0.00023065,2]
[374571305,1753360234325,-153.0,0.00023065,2]
[374571306,1753360234335,-1211.0,0.00023065,2]
[374571307,1753360234347,-1211.0,0.00023065,2]
[374571308,1753360234356,-1211.0,0.00023065,2]
[374571309,1753360234366,-1211.0,0.00023065,2]
[374571310,1753360234377,-1211.0,0.00023065,2]
[374571311,1753360234387,-443.22,0.00023065,2]
[374571312,1753360234397,-150.0,0.00023071,4]
[374571313,1753360234407,-261.0,0.00023072,2]
[374571314,1753360234417,-1367.896429,0.00023083,8]
[374571315,1753360234427,-150.0,0.00023112,4]
[374571316,1753360234438,-150.0,0.00023112,4]
[374571317,1753360234448,-150.0,0.00023112,4]
[374571318,1753360234458,-522.0,0.00023117,2]
[374571319,1753360234469,-1580.24444285,0.00023141,8]
[374571320,1753360234479,-150.0,0.00023154,4]
[374571321,1753360234489,-458.0,0.0002318,2]
[374571322,1753360234498,-7580.55162403,0.00023183,2]
[374571323,1753360234508,-150.0,0.00023237,4]
[374571324,1753360234518,-150.0,0.00023251,2]
[374571325,1753360234528,-262.69,0.00023252,2]
[374571326,1753360234538,-150.0,0.00023253,2]
[374571327,1753360234548,-152.29,0.00023271,2]
[374571328,1753360234557,-1580.24444285,0.00023279,8]
[374571329,1753360234567,-301.77,0.00023288,2]
[374571330,1753360234577,-150.0,0.00023288,2]
[374571331,1753360234586,-150.0,0.00023288,2]
[374571332,1753360234596,-150.0,0.00023288,2]
[374571333,1753360234606,-150.0,0.00023288,2]
[374571334,1753360234616,-261.0,0.00023294,2]
[374571335,1753360234630,-150.0,0.00023321,4]
[374571336,1753360234640,-150.0,0.00023321,4]
[374571337,1753360234649,-239.0,0.000234,2]
[374571338,1753360234658,-378.0,0.000234,2]
[374571339,1753360234668,-774.0,0.000234,2]
[374571340,1753360234677,-150.0,0.00023404,4]
[374571341,1753360234687,-1580.24444285,0.00023417,9]
[374571342,1753360234696,-16848.76846193,0.00023425,2]
[374571343,1753360234706,-359.76179104,0.00023456,2]
[374571344,1753360234715,-160.0,0.00023456,2]
[374571345,1753360234725,-239.84119403,0.00023456,2]
[374571346,1753360234734,-150.0,0.00023466,2]
[374571347,1753360234744,-2061.0,0.00023485,2]
[374571348,1753360234753,-150.0,0.00023487,4]
[374571349,1753360234761,-150.53604999,0.00023496,2]
[374571350,1753360234770,-250.0,0.00023496,2]
[374571351,1753360234778,-150.0,0.00023496,2]
[374571352,1753360234787,-150.0,0.00023496,2]
[374571353,1753360234795,-150.0,0.00023496,2]
[374571354,1753360234805,-868.0,0.00023496,2]
[374571355,1753360234815,-150.0,0.00023496,2]
[374571356,1753360234825,-238.49654921,0.00023496,2]
[374571357,1753360234834,-150.0,0.00023496,2]
[374571358,1753360234843,-789.0,0.00023496,2]